[Event "Early-Titled-Tuesday-Blitz-February-27-2024"]
[Site "Chess.com"]
[Date "2024.02.27"]
[Round "5"]
[White "scarabee43"]
[Black "Iskusnyh"]
[Result "1-0"]
[WhiteElo "2885"]
[BlackElo "2673"]
[TimeControl "180+1"]
[EndTime "8:54:44 PST"]
[Termination "scarabee43 won on time"]

1. Nf3 {[%clk 0:03:00.9]} 1... d5 {[%clk 0:02:57.4]} 2. e3 {[%clk 0:03:00.6]}
2... Nf6 {[%clk 0:02:55.4]} 3. c4 {[%clk 0:03:00.5]} 3... c6 {[%clk 0:02:54.8]}
4. b3 {[%clk 0:03:00]} 4... Bg4 {[%clk 0:02:52.7]} 5. Bb2 {[%clk 0:03:00]} 5...
e6 {[%clk 0:02:52.2]} 6. Be2 {[%clk 0:03:00]} 6... Be7 {[%clk 0:02:50.5]} 7. O-O
{[%clk 0:02:59.7]} 7... O-O {[%clk 0:02:49.3]} 8. d3 {[%clk 0:02:55.4]} 8...
Nbd7 {[%clk 0:02:47.2]} 9. Nbd2 {[%clk 0:02:55.1]} 9... a5 {[%clk 0:02:45.8]}
10. h3 {[%clk 0:02:52.5]} 10... Bh5 {[%clk 0:02:44.7]} 11. Rc1 {[%clk
0:02:46.3]} 11... a4 {[%clk 0:02:42.9]} 12. Rc2 {[%clk 0:02:36.7]} 12... Qa5
{[%clk 0:02:37.3]} 13. g4 {[%clk 0:02:23.1]} 13... Bg6 {[%clk 0:02:35.8]} 14.
Nh4 {[%clk 0:02:23.8]} 14... Rfe8 {[%clk 0:02:18.9]} 15. Nxg6 {[%clk 0:02:23.1]}
15... hxg6 {[%clk 0:02:19.1]} 16. Nf3 {[%clk 0:02:13.9]} 16... Bd6 {[%clk
0:02:06.5]} 17. g5 {[%clk 0:01:55]} 17... Nh7 {[%clk 0:02:00.7]} 18. h4 {[%clk
0:01:44.7]} 18... Nhf8 {[%clk 0:01:55.7]} 19. e4 {[%clk 0:01:34.4]} 19... dxe4
{[%clk 0:01:49]} 20. dxe4 {[%clk 0:01:34.1]} 20... Bf4 {[%clk 0:01:48.5]} 21.
Bc3 {[%clk 0:01:30.2]} 21... Qc7 {[%clk 0:01:43.8]} 22. b4 {[%clk 0:01:30.4]}
22... Ne5 {[%clk 0:01:41.4]} 23. Ne1 {[%clk 0:01:19.3]} 23... Rad8 {[%clk
0:01:39.2]} 24. Qa1 {[%clk 0:01:18.2]} 24... Nfd7 {[%clk 0:01:31.5]} 25. Ng2
{[%clk 0:01:17.5]} 25... Bh2+ {[%clk 0:00:51.4]} 26. Kh1 {[%clk 0:01:17.3]}
26... c5 {[%clk 0:00:51.2]} 27. f4 {[%clk 0:01:10.5]} 27... cxb4 {[%clk
0:00:50.2]} 28. Bxb4 {[%clk 0:01:01.6]} 28... Nc6 {[%clk 0:00:48.5]} 29. Be1
{[%clk 0:01:02.1]} 29... Nc5 {[%clk 0:00:44]} 30. Kxh2 {[%clk 0:01:00.2]} 30...
Nd4 {[%clk 0:00:43.4]} 31. Rd2 {[%clk 0:01:00.5]} 31... e5 {[%clk 0:00:39.1]}
32. fxe5 {[%clk 0:00:55.8]} 32... Nxe4 {[%clk 0:00:36.3]} 33. Rd3 {[%clk
0:00:34.2]} 33... Nxe2 {[%clk 0:00:30.1]} 34. Re3 {[%clk 0:00:31.6]} 34... Nd2
{[%clk 0:00:18.4]} 35. Rf2 {[%clk 0:00:22.7]} 35... Nxc4 {[%clk 0:00:13.4]} 36.
Rexe2 {[%clk 0:00:22]} 36... Nxe5 {[%clk 0:00:11.5]} 37. Kh1 {[%clk 0:00:19.7]}
37... Ng4 {[%clk 0:00:10.8]} 38. Rxe8+ {[%clk 0:00:17.9]} 38... Rxe8 {[%clk
0:00:10.4]} 39. Rf4 {[%clk 0:00:18.7]} 39... Ne3 {[%clk 0:00:05.1]} 40. Qc3
{[%clk 0:00:15.6]} 40... Qxc3 {[%clk 0:00:03.2]} 41. Bxc3 {[%clk 0:00:15.8]}
41... Nd5 {[%clk 0:00:03.6]} 42. Rf3 {[%clk 0:00:14.3]} 42... Re2 {[%clk
0:00:01.9]} 43. a3 {[%clk 0:00:14.5]} 43... b5 {[%clk 0:00:00.4]} 44. Bd4 {[%clk
0:00:14.3]} 1-0

[Event "Early-Titled-Tuesday-Blitz-February-27-2024"]
[Site "Chess.com"]
[Date "2024.02.27"]
[Round "5"]
[White "SahibSinghKnight"]
[Black "Witik"]
[Result "1-0"]
[WhiteElo "2575"]
[BlackElo "2703"]
[TimeControl "180+1"]
[EndTime "8:54:44 PST"]
[Termination "SahibSinghKnight won by resignation"]

1. e4 {[%clk 0:02:57.6]} 1... c6 {[%clk 0:02:59.8]} 2. d4 {[%clk 0:02:55.2]}
2... d5 {[%clk 0:02:59.6]} 3. Nc3 {[%clk 0:02:55.9]} 3... dxe4 {[%clk
0:02:59.4]} 4. Nxe4 {[%clk 0:02:56.8]} 4... Nf6 {[%clk 0:02:58.4]} 5. Nxf6+
{[%clk 0:02:56.9]} 5... exf6 {[%clk 0:02:59]} 6. Be2 {[%clk 0:02:54.8]} 6... Bd6
{[%clk 0:02:59.5]} 7. Bf3 {[%clk 0:02:54.5]} 7... O-O {[%clk 0:02:59.8]} 8. Ne2
{[%clk 0:02:55]} 8... Re8 {[%clk 0:02:58.3]} 9. Be3 {[%clk 0:02:53.5]} 9... Nd7
{[%clk 0:02:58.3]} 10. O-O {[%clk 0:02:50.5]} 10... Nf8 {[%clk 0:02:57.5]} 11.
c4 {[%clk 0:02:48]} 11... Ng6 {[%clk 0:02:54.7]} 12. g3 {[%clk 0:02:42.6]} 12...
Bh3 {[%clk 0:02:50.9]} 13. Re1 {[%clk 0:02:42.8]} 13... Qd7 {[%clk 0:02:48.6]}
14. Nc3 {[%clk 0:02:39.8]} 14... Rad8 {[%clk 0:02:38.3]} 15. a3 {[%clk
0:02:27.5]} 15... f5 {[%clk 0:02:23]} 16. c5 {[%clk 0:02:04.9]} 16... Bb8 {[%clk
0:02:07.4]} 17. d5 {[%clk 0:02:03.6]} 17... f4 {[%clk 0:02:01.7]} 18. Bd4 {[%clk
0:01:40.2]} 18... fxg3 {[%clk 0:01:54.7]} 19. hxg3 {[%clk 0:01:29.2]} 19... cxd5
{[%clk 0:01:37.9]} 20. Rxe8+ {[%clk 0:01:23.1]} 20... Rxe8 {[%clk 0:01:30]} 21.
Bxd5 {[%clk 0:01:22.2]} 21... Ne5 {[%clk 0:01:08.6]} 22. Qa4 {[%clk 0:01:12]}
22... Qxa4 {[%clk 0:00:33]} 23. Nxa4 {[%clk 0:01:10]} 23... Nc6 {[%clk
0:00:29.6]} 24. Bc3 {[%clk 0:00:58.1]} 24... h5 {[%clk 0:00:23.4]} 25. Re1
{[%clk 0:00:53.2]} 25... Rd8 {[%clk 0:00:23.7]} 26. Bc4 {[%clk 0:00:45.6]} 26...
Bc7 {[%clk 0:00:14.9]} 27. b4 {[%clk 0:00:44.5]} 27... a6 {[%clk 0:00:13.1]} 28.
Nb2 {[%clk 0:00:42.2]} 28... Nd4 {[%clk 0:00:11.5]} 29. Bxd4 {[%clk 0:00:40.6]}
29... Rxd4 {[%clk 0:00:11.5]} 30. Re8+ {[%clk 0:00:41.3]} 30... Kh7 {[%clk
0:00:11.8]} 31. Bxf7 {[%clk 0:00:41.9]} 31... Rd2 {[%clk 0:00:04.6]} 32. Nc4
{[%clk 0:00:34.6]} 32... Rd1+ {[%clk 0:00:02.5]} 33. Kh2 {[%clk 0:00:34.9]}
33... Bg4 {[%clk 0:00:03.1]} 34. Ne3 {[%clk 0:00:34.7]} 34... Rd2 {[%clk
0:00:01.7]} 35. Nxg4 {[%clk 0:00:31.9]} 35... hxg4 {[%clk 0:00:02.6]} 36. Kg2
{[%clk 0:00:31.7]} 36... b6 {[%clk 0:00:03]} 37. Rc8 {[%clk 0:00:28.7]} 37...
Be5 {[%clk 0:00:02.8]} 38. cxb6 {[%clk 0:00:28.4]} 38... Bd4 {[%clk 0:00:02.9]}
39. Bg8+ {[%clk 0:00:28.6]} 39... Kg6 {[%clk 0:00:03]} 40. Rc6+ {[%clk
0:00:28.7]} 40... Kg5 {[%clk 0:00:02.8]} 41. Rc5+ {[%clk 0:00:26.9]} 41... Kf6
{[%clk 0:00:01.8]} 42. Rc6+ {[%clk 0:00:21.1]} 42... Kg5 {[%clk 0:00:02]} 43.
Kf1 {[%clk 0:00:20.6]} 43... Rxf2+ {[%clk 0:00:02.3]} 44. Ke1 {[%clk 0:00:20.8]}
44... Rf3 {[%clk 0:00:02.6]} 45. b7 {[%clk 0:00:21]} 45... Ba7 {[%clk
0:00:02.7]} 46. Rxa6 {[%clk 0:00:20.6]} 46... Bb8 {[%clk 0:00:02.9]} 47. Ra8
{[%clk 0:00:20.6]} 47... Bxg3+ {[%clk 0:00:03.3]} 48. Ke2 {[%clk 0:00:20.5]}
48... Rf2+ {[%clk 0:00:03.8]} 49. Kd3 {[%clk 0:00:21.1]} 49... Ra2 {[%clk
0:00:03.7]} 50. Bxa2 {[%clk 0:00:19]} 1-0

[Event "Early-Titled-Tuesday-Blitz-February-27-2024"]
[Site "Chess.com"]
[Date "2024.02.27"]
[Round "5"]
[White "Misterfox120"]
[Black "Kev4444444444"]
[Result "0-1"]
[WhiteElo "2431"]
[BlackElo "2293"]
[TimeControl "180+1"]
[EndTime "8:54:44 PST"]
[Termination "Kev4444444444 won by checkmate"]

1. d4 {[%clk 0:02:55.1]} 1... Nf6 {[%clk 0:02:57.8]} 2. Bf4 {[%clk 0:02:54.9]}
2... g6 {[%clk 0:02:57.2]} 3. Nc3 {[%clk 0:02:54.4]} 3... Bg7 {[%clk 0:02:54.9]}
4. e4 {[%clk 0:02:54.2]} 4... O-O {[%clk 0:02:55.2]} 5. e5 {[%clk 0:02:50.2]}
5... Ne8 {[%clk 0:02:51.2]} 6. h4 {[%clk 0:02:48.2]} 6... d6 {[%clk 0:02:36.4]}
7. exd6 {[%clk 0:02:37.4]} 7... cxd6 {[%clk 0:02:31.4]} 8. h5 {[%clk 0:02:36.7]}
8... Nc6 {[%clk 0:02:15.9]} 9. d5 {[%clk 0:02:31.7]} 9... Nd4 {[%clk 0:02:04]}
10. Bd3 {[%clk 0:02:17.6]} 10... Bf5 {[%clk 0:02:02.9]} 11. Nge2 {[%clk
0:02:02.1]} 11... Nxe2 {[%clk 0:01:50.7]} 12. Qxe2 {[%clk 0:02:03]} 12... Bxd3
{[%clk 0:01:41.7]} 13. Qxd3 {[%clk 0:01:59.6]} 13... Rc8 {[%clk 0:01:41.7]} 14.
hxg6 {[%clk 0:01:53.9]} 14... fxg6 {[%clk 0:01:35.7]} 15. Bh6 {[%clk 0:01:39.2]}
15... Qb6 {[%clk 0:01:34.8]} 16. Bxg7 {[%clk 0:01:35.9]} 16... Qxf2+ {[%clk
0:01:30.6]} 17. Kd1 {[%clk 0:01:31.5]} 17... Nxg7 {[%clk 0:01:27.1]} 18. Re1
{[%clk 0:01:21.4]} 18... Rf4 {[%clk 0:01:14.2]} 19. Ne2 {[%clk 0:01:04.3]} 19...
Rf5 {[%clk 0:01:06.1]} 20. Kd2 {[%clk 0:00:53.8]} 20... Rc5 {[%clk 0:01:01.8]}
21. c4 {[%clk 0:00:50.6]} 21... Qh4 {[%clk 0:01:01.5]} 22. b3 {[%clk 0:00:42.9]}
22... b5 {[%clk 0:00:54.8]} 23. Rac1 {[%clk 0:00:32.6]} 23... Qg5+ {[%clk
0:00:51.1]} 24. Kd1 {[%clk 0:00:18.4]} 24... Rcxd5 {[%clk 0:00:48.1]} 25. cxd5
{[%clk 0:00:17.6]} 25... Rxd5 {[%clk 0:00:48.4]} 26. Nd4 {[%clk 0:00:14.5]}
26... Qg4+ {[%clk 0:00:40.7]} 27. Qe2 {[%clk 0:00:12.6]} 27... Qxd4+ {[%clk
0:00:26.3]} 28. Kc2 {[%clk 0:00:11]} 28... e5 {[%clk 0:00:22.5]} 29. Red1 {[%clk
0:00:07.7]} 29... Rc5+ {[%clk 0:00:22]} 30. Kb1 {[%clk 0:00:07.7]} 30... Rxc1+
{[%clk 0:00:20.8]} 31. Rxc1 {[%clk 0:00:08.6]} 31... Nf5 {[%clk 0:00:20.3]} 32.
Qxb5 {[%clk 0:00:07.6]} 32... Kg7 {[%clk 0:00:16.6]} 33. Qd7+ {[%clk 0:00:06.2]}
33... Kh6 {[%clk 0:00:16.7]} 34. Rh1+ {[%clk 0:00:06.1]} 34... Kg5 {[%clk
0:00:17.2]} 35. Qd8+ {[%clk 0:00:06.2]} 35... Kg4 {[%clk 0:00:14.3]} 36. Qa5
{[%clk 0:00:03.1]} 36... Ne3 {[%clk 0:00:11.6]} 37. Qa4 {[%clk 0:00:01.4]} 37...
Qxa4 {[%clk 0:00:09]} 38. bxa4 {[%clk 0:00:02.3]} 38... h5 {[%clk 0:00:08.9]}
39. Re1 {[%clk 0:00:01.1]} 39... Nxg2 {[%clk 0:00:08.6]} 40. Rd1 {[%clk
0:00:01.8]} 40... h4 {[%clk 0:00:06.6]} 41. Rxd6 {[%clk 0:00:02.7]} 41... Nf4
{[%clk 0:00:05.8]} 42. Rd7 {[%clk 0:00:03]} 42... h3 {[%clk 0:00:05.1]} 43. Rxa7
{[%clk 0:00:03.6]} 43... h2 {[%clk 0:00:04.9]} 44. Rh7 {[%clk 0:00:04.5]} 44...
Nh5 {[%clk 0:00:05.4]} 45. Rxh5 {[%clk 0:00:05.4]} 45... Kxh5 {[%clk 0:00:05.4]}
46. a5 {[%clk 0:00:06.3]} 46... h1=Q+ {[%clk 0:00:06]} 47. Kb2 {[%clk
0:00:07.2]} 47... Qd5 {[%clk 0:00:06.3]} 48. Ka3 {[%clk 0:00:08.1]} 48... Qxa5+
{[%clk 0:00:06.8]} 49. Kb3 {[%clk 0:00:08.5]} 49... e4 {[%clk 0:00:07.3]} 50.
Kb2 {[%clk 0:00:09.4]} 50... Qd5 {[%clk 0:00:06.8]} 51. a4 {[%clk 0:00:10.3]}
51... g5 {[%clk 0:00:07.6]} 52. Kc2 {[%clk 0:00:11]} 52... g4 {[%clk 0:00:08.5]}
53. Kc3 {[%clk 0:00:11.8]} 53... g3 {[%clk 0:00:09.4]} 54. Kb4 {[%clk
0:00:12.6]} 54... g2 {[%clk 0:00:09.8]} 55. a5 {[%clk 0:00:13.5]} 55... g1=Q
{[%clk 0:00:10.1]} 56. a6 {[%clk 0:00:14.4]} 56... Qgc5+ {[%clk 0:00:10]} 57.
Ka4 {[%clk 0:00:14.2]} 57... Qa2# {[%clk 0:00:10.5]} 0-1

[Event "Early-Titled-Tuesday-Blitz-February-27-2024"]
[Site "Chess.com"]
[Date "2024.02.27"]
[Round "5"]
[White "Honiex"]
[Black "Rodalquilar"]
[Result "0-1"]
[WhiteElo "2551"]
[BlackElo "2791"]
[TimeControl "180+1"]
[EndTime "8:54:45 PST"]
[Termination "Rodalquilar won by resignation"]

1. Nc3 {[%clk 0:03:00.9]} 1... d5 {[%clk 0:02:59.4]} 2. e4 {[%clk 0:03:00]} 2...
dxe4 {[%clk 0:02:58.3]} 3. Nxe4 {[%clk 0:03:00.1]} 3... Bf5 {[%clk 0:02:58.7]}
4. Qf3 {[%clk 0:02:59.1]} 4... Qd5 {[%clk 0:02:57.7]} 5. Nd6+ {[%clk 0:02:57.3]}
5... Qxd6 {[%clk 0:02:58]} 6. Qxf5 {[%clk 0:02:55.5]} 6... Nc6 {[%clk
0:02:57.4]} 7. Nf3 {[%clk 0:02:52]} 7... Nf6 {[%clk 0:02:49.1]} 8. d4 {[%clk
0:02:35.5]} 8... e6 {[%clk 0:02:37.8]} 9. Qf4 {[%clk 0:02:34.2]} 9... O-O-O
{[%clk 0:02:30.1]} 10. Qxd6 {[%clk 0:02:27.2]} 10... Bxd6 {[%clk 0:02:28.9]} 11.
Be2 {[%clk 0:02:19.1]} 11... h6 {[%clk 0:02:21.9]} 12. O-O {[%clk 0:02:18.2]}
12... Rhe8 {[%clk 0:02:16.9]} 13. c3 {[%clk 0:01:41.5]} 13... e5 {[%clk
0:02:16.9]} 14. dxe5 {[%clk 0:01:41.1]} 14... Nxe5 {[%clk 0:02:17.8]} 15. Nxe5
{[%clk 0:01:41.2]} 15... Bxe5 {[%clk 0:02:18.7]} 16. Be3 {[%clk 0:01:36.9]}
16... Nd5 {[%clk 0:02:17.3]} 17. Bg4+ {[%clk 0:01:10.3]} 17... Kb8 {[%clk
0:02:16.6]} 18. Rfe1 {[%clk 0:01:10.2]} 18... a5 {[%clk 0:01:40.1]} 19. Rad1
{[%clk 0:00:36.1]} 19... a4 {[%clk 0:01:26.7]} 20. a3 {[%clk 0:00:35.4]} 20...
Bf6 {[%clk 0:00:49]} 21. Bc1 {[%clk 0:00:23.2]} 21... Rxe1+ {[%clk 0:00:46.1]}
22. Rxe1 {[%clk 0:00:22.8]} 22... Nb6 {[%clk 0:00:46.6]} 23. Be2 {[%clk
0:00:18.5]} 23... Bg5 {[%clk 0:00:42.3]} 24. Bxg5 {[%clk 0:00:13.6]} 24... hxg5
{[%clk 0:00:43.2]} 25. Rd1 {[%clk 0:00:11.6]} 25... Re8 {[%clk 0:00:26.3]} 26.
Kf1 {[%clk 0:00:12]} 26... c6 {[%clk 0:00:26.1]} 27. Rd4 {[%clk 0:00:09.1]}
27... Kc7 {[%clk 0:00:20]} 28. Bc4 {[%clk 0:00:09.3]} 28... f6 {[%clk
0:00:19.5]} 29. Ba2 {[%clk 0:00:08.9]} 29... Re5 {[%clk 0:00:18.8]} 30. g3
{[%clk 0:00:07.2]} 30... Rb5 {[%clk 0:00:16.4]} 31. Rd2 {[%clk 0:00:06.5]} 31...
Re5 {[%clk 0:00:13.1]} 32. Re2 {[%clk 0:00:05.5]} 32... Kd6 {[%clk 0:00:12.5]}
33. Rd2+ {[%clk 0:00:05.7]} 33... Ke7 {[%clk 0:00:11.1]} 34. Rd4 {[%clk
0:00:05.7]} 34... Rb5 {[%clk 0:00:10.4]} 35. Rb4 {[%clk 0:00:05.9]} 35... Kd6
{[%clk 0:00:07.6]} 36. Ke2 {[%clk 0:00:05.4]} 36... Kc5 {[%clk 0:00:06.1]} 37.
Kd3 {[%clk 0:00:05.3]} 37... Nd7 {[%clk 0:00:04.9]} 38. Rxb5+ {[%clk 0:00:04.9]}
38... cxb5 {[%clk 0:00:04.5]} 39. Bb1 {[%clk 0:00:04.1]} 39... Ne5+ {[%clk
0:00:04.5]} 40. Kc2 {[%clk 0:00:02.5]} 40... Nf3 {[%clk 0:00:04.8]} 41. h3
{[%clk 0:00:02.5]} 41... Ng1 {[%clk 0:00:05.4]} 42. Kd2 {[%clk 0:00:02.1]} 42...
Nxh3 {[%clk 0:00:05.5]} 43. Be4 {[%clk 0:00:02.4]} 43... Nxf2 {[%clk 0:00:05]}
44. Bxb7 {[%clk 0:00:02.4]} 44... Ng4 {[%clk 0:00:05.6]} 45. Ke2 {[%clk
0:00:02.6]} 45... Ne5 {[%clk 0:00:06]} 46. Ke3 {[%clk 0:00:02.6]} 46... Nc4+
{[%clk 0:00:06.5]} 47. Kd3 {[%clk 0:00:02.8]} 47... Nxb2+ {[%clk 0:00:07.2]} 48.
Kc2 {[%clk 0:00:02.8]} 48... Nc4 {[%clk 0:00:08.1]} 0-1

[Event "Early-Titled-Tuesday-Blitz-February-27-2024"]
[Site "Chess.com"]
[Date "2024.02.27"]
[Round "5"]
[White "andrzej"]
[Black "BilicVladimir"]
[Result "1-0"]
[WhiteElo "2517"]
[BlackElo "2677"]
[TimeControl "180+1"]
[EndTime "8:54:50 PST"]
[Termination "andrzej won by resignation"]

1. e4 {[%clk 0:03:00]} 1... c6 {[%clk 0:03:00.9]} 2. d4 {[%clk 0:02:59.9]} 2...
d5 {[%clk 0:03:01.8]} 3. e5 {[%clk 0:03:00.5]} 3... Bf5 {[%clk 0:03:01.2]} 4. h4
{[%clk 0:03:01]} 4... Qb6 {[%clk 0:03:00.6]} 5. a4 {[%clk 0:02:59.9]} 5... a6
{[%clk 0:02:56]} 6. a5 {[%clk 0:02:58.9]} 6... Qc7 {[%clk 0:02:55.8]} 7. Nc3
{[%clk 0:02:47.3]} 7... h5 {[%clk 0:02:47.3]} 8. Nge2 {[%clk 0:02:38.5]} 8... e6
{[%clk 0:02:44.3]} 9. Ng3 {[%clk 0:02:38.4]} 9... Bg6 {[%clk 0:02:44.4]} 10. Be2
{[%clk 0:02:27]} 10... c5 {[%clk 0:02:43.9]} 11. dxc5 {[%clk 0:02:18.8]} 11...
Bxc5 {[%clk 0:02:39.9]} 12. Bf4 {[%clk 0:02:18.4]} 12... Nc6 {[%clk 0:02:38.2]}
13. O-O {[%clk 0:02:13.3]} 13... Nge7 {[%clk 0:02:30.8]} 14. Bxh5 {[%clk
0:02:12.6]} 14... Bxh5 {[%clk 0:02:21.8]} 15. Nxh5 {[%clk 0:02:12.6]} 15... Kf8
{[%clk 0:02:15.1]} 16. Na4 {[%clk 0:01:55.3]} 16... Qxa5 {[%clk 0:02:08.2]} 17.
c3 {[%clk 0:01:43.8]} 17... Ba7 {[%clk 0:02:05.8]} 18. b4 {[%clk 0:01:38]} 18...
Qd8 {[%clk 0:02:04.9]} 19. Qe2 {[%clk 0:01:25.2]} 19... Ng6 {[%clk 0:02:02.8]}
20. Bg5 {[%clk 0:01:24.5]} 20... Qc7 {[%clk 0:01:55.5]} 21. Rae1 {[%clk
0:01:16.3]} 21... Ncxe5 {[%clk 0:01:47]} 22. Nf4 {[%clk 0:01:03.5]} 22... Qd7
{[%clk 0:01:41.5]} 23. Nxg6+ {[%clk 0:00:54.1]} 23... Nxg6 {[%clk 0:01:40.4]}
24. h5 {[%clk 0:00:47.5]} 24... Ne7 {[%clk 0:01:32.7]} 25. Nb2 {[%clk
0:00:41.3]} 25... Nf5 {[%clk 0:01:25.9]} 26. Nd3 {[%clk 0:00:41.3]} 26... Ng3
{[%clk 0:01:12.8]} 27. Qg4 {[%clk 0:00:30.3]} 27... Nxf1 {[%clk 0:01:10.6]} 28.
Kxf1 {[%clk 0:00:30.6]} 28... Qb5 {[%clk 0:00:57.7]} 29. Qf3 {[%clk 0:00:30.3]}
29... Rc8 {[%clk 0:00:42.9]} 30. Bd2 {[%clk 0:00:22.9]} 30... Kg8 {[%clk
0:00:36.1]} 31. Kg1 {[%clk 0:00:23.1]} 31... Bb8 {[%clk 0:00:34.1]} 32. h6
{[%clk 0:00:20.8]} 32... Rxh6 {[%clk 0:00:22.2]} 33. Bxh6 {[%clk 0:00:20.3]}
33... gxh6 {[%clk 0:00:20.5]} 34. Qg4+ {[%clk 0:00:17.9]} 34... Kf8 {[%clk
0:00:20.6]} 35. Nf4 {[%clk 0:00:14.7]} 35... Qc4 {[%clk 0:00:16.2]} 36. Nxe6+
{[%clk 0:00:09.2]} 36... fxe6 {[%clk 0:00:15.9]} 37. Qxe6 {[%clk 0:00:09.9]}
37... Qc7 {[%clk 0:00:15.2]} 38. Qxh6+ {[%clk 0:00:08.4]} 38... Qg7 {[%clk
0:00:13.8]} 39. Qh3 {[%clk 0:00:06.6]} 39... Rd8 {[%clk 0:00:12.1]} 40. Re3
{[%clk 0:00:06.4]} 40... Be5 {[%clk 0:00:08.3]} 41. Rf3+ {[%clk 0:00:06.2]}
41... Bf6 {[%clk 0:00:08.5]} 42. Qe6 {[%clk 0:00:06.4]} 42... Re8 {[%clk
0:00:07]} 43. Rxf6+ {[%clk 0:00:06]} 43... Qxf6 {[%clk 0:00:07.1]} 44. Qxf6+
{[%clk 0:00:06.9]} 44... Kg8 {[%clk 0:00:08]} 45. Qg6+ {[%clk 0:00:06.6]} 45...
Kf8 {[%clk 0:00:07.6]} 46. Qd6+ {[%clk 0:00:06.8]} 46... Kf7 {[%clk 0:00:07.6]}
47. Qxd5+ {[%clk 0:00:07.3]} 47... Kf6 {[%clk 0:00:08.1]} 48. Qxb7 {[%clk
0:00:07.5]} 48... Re7 {[%clk 0:00:09]} 49. Qxe7+ {[%clk 0:00:07.1]} 49... Kxe7
{[%clk 0:00:08.9]} 50. g4 {[%clk 0:00:07.7]} 1-0

[Event "Early-Titled-Tuesday-Blitz-February-27-2024"]
[Site "Chess.com"]
[Date "2024.02.27"]
[Round "5"]
[White "SARGISMV"]
[Black "SaqoChess_Twitch"]
[Result "1-0"]
[WhiteElo "2458"]
[BlackElo "2587"]
[TimeControl "180+1"]
[EndTime "8:54:51 PST"]
[Termination "SARGISMV won by resignation"]

1. d4 {[%clk 0:02:37.9]} 1... d5 {[%clk 0:02:59.6]} 2. c4 {[%clk 0:02:37.7]}
2... e6 {[%clk 0:03:00]} 3. Nc3 {[%clk 0:02:36.6]} 3... Nf6 {[%clk 0:03:00.6]}
4. Bg5 {[%clk 0:02:33.9]} 4... Be7 {[%clk 0:03:00.5]} 5. Nf3 {[%clk 0:02:33]}
5... O-O {[%clk 0:03:00.9]} 6. e3 {[%clk 0:02:27]} 6... h6 {[%clk 0:03:00.7]} 7.
Bxf6 {[%clk 0:02:24.5]} 7... Bxf6 {[%clk 0:03:00.6]} 8. Qd2 {[%clk 0:02:23.6]}
8... b6 {[%clk 0:02:24.1]} 9. g4 {[%clk 0:02:14.3]} 9... g6 {[%clk 0:02:17.2]}
10. h4 {[%clk 0:02:13.5]} 10... Bg7 {[%clk 0:02:17.3]} 11. g5 {[%clk 0:02:03.3]}
11... h5 {[%clk 0:02:17.4]} 12. cxd5 {[%clk 0:01:57.4]} 12... exd5 {[%clk
0:02:17.1]} 13. Ne5 {[%clk 0:01:56]} 13... c5 {[%clk 0:02:13.9]} 14. f4 {[%clk
0:01:52.1]} 14... cxd4 {[%clk 0:02:03]} 15. exd4 {[%clk 0:01:51.1]} 15... Bf5
{[%clk 0:01:55.2]} 16. Bg2 {[%clk 0:01:46.9]} 16... Nd7 {[%clk 0:01:52.8]} 17.
Nxd5 {[%clk 0:01:41.4]} 17... Nxe5 {[%clk 0:01:51.9]} 18. fxe5 {[%clk
0:01:32.6]} 18... Rc8 {[%clk 0:01:43.1]} 19. Rc1 {[%clk 0:00:54.2]} 19... Rxc1+
{[%clk 0:01:31.4]} 20. Qxc1 {[%clk 0:00:55.1]} 20... Be6 {[%clk 0:01:31.9]} 21.
Qc6 {[%clk 0:00:49.8]} 21... Bxd5 {[%clk 0:01:25.5]} 22. Bxd5 {[%clk 0:00:50.5]}
22... Qc8 {[%clk 0:01:02.4]} 23. Qxc8 {[%clk 0:00:49.4]} 23... Rxc8 {[%clk
0:01:03.3]} 24. O-O {[%clk 0:00:49.6]} 24... Rc7 {[%clk 0:00:58.5]} 25. Rf2
{[%clk 0:00:44.3]} 25... Bf8 {[%clk 0:00:46.7]} 26. Kg2 {[%clk 0:00:38.4]} 26...
Rd7 {[%clk 0:00:45.2]} 27. Bb3 {[%clk 0:00:36.8]} 27... a5 {[%clk 0:00:35.8]}
28. e6 {[%clk 0:00:30.3]} 28... Rxd4 {[%clk 0:00:35.9]} 29. Rxf7 {[%clk
0:00:29.9]} 29... a4 {[%clk 0:00:29.4]} 30. e7 {[%clk 0:00:16.2]} 30... Bxe7
{[%clk 0:00:28.6]} 31. Rf4+ {[%clk 0:00:15.8]} 31... axb3 {[%clk 0:00:28.7]} 32.
Rxd4 {[%clk 0:00:16.4]} 32... bxa2 {[%clk 0:00:21.3]} 33. Ra4 {[%clk 0:00:16.9]}
33... Kf7 {[%clk 0:00:19.6]} 34. Rxa2 {[%clk 0:00:16.9]} 34... Ke6 {[%clk
0:00:20.5]} 35. Ra6 {[%clk 0:00:17.1]} 35... Bc5 {[%clk 0:00:21.1]} 36. b4
{[%clk 0:00:17.3]} 36... Bd4 {[%clk 0:00:19.3]} 37. Kf3 {[%clk 0:00:17]} 37...
Kd5 {[%clk 0:00:16.6]} 38. Ra8 {[%clk 0:00:17.1]} 38... Kc4 {[%clk 0:00:16.9]}
39. Rg8 {[%clk 0:00:17]} 39... Kxb4 {[%clk 0:00:17.6]} 40. Rxg6 {[%clk
0:00:17.7]} 40... Kc4 {[%clk 0:00:18]} 41. Rh6 {[%clk 0:00:17.9]} 41... b5
{[%clk 0:00:18.6]} 42. Rxh5 {[%clk 0:00:17.8]} 42... b4 {[%clk 0:00:19.1]} 43.
Rh7 {[%clk 0:00:17.4]} 43... b3 {[%clk 0:00:11]} 44. Rb7 {[%clk 0:00:17.1]}
44... Bc3 {[%clk 0:00:11.2]} 45. Rxb3 {[%clk 0:00:14.4]} 45... Kxb3 {[%clk
0:00:11.3]} 46. Ke4 {[%clk 0:00:13.9]} 46... Kc4 {[%clk 0:00:11.7]} 47. h5
{[%clk 0:00:13.5]} 47... Bd2 {[%clk 0:00:11.4]} 48. Kf5 {[%clk 0:00:13.3]} 48...
Kd5 {[%clk 0:00:11.3]} 49. h6 {[%clk 0:00:13.9]} 49... Kd6 {[%clk 0:00:10.8]}
50. Kf6 {[%clk 0:00:12.8]} 50... Kd7 {[%clk 0:00:10.3]} 51. h7 {[%clk
0:00:12.2]} 51... Bc3+ {[%clk 0:00:09.5]} 52. Kf7 {[%clk 0:00:12.3]} 52... Kd6
{[%clk 0:00:04.8]} 53. g6 {[%clk 0:00:12.7]} 53... Be5 {[%clk 0:00:04.1]} 54. g7
{[%clk 0:00:13.1]} 1-0